[Event "The Kvibergspelen 2024"]
[Site "Kviberg Park Hotel & Conference, Krutvagen 2, Gothenburg, Sweden"]
[Date "2024.09.06"]
[Round "1.6"]
[White "Ernst, Thomas"]
[Black "Simpson, Liam"]
[Result "1/2-1/2"]
[TimeControl "15 minutes + 5 seconds per move from move one (Round 1 - 4) / 90 minutes + 30 seconds per move from move one (Round 5 - 8)"]
[WhiteTitle "GM"]
[WhiteFideId "1700065"]
[BlackFideId "1778048"]
[WhiteElo "2261"]
[BlackElo "1881"]

1. e4 {[%clk 00:15:08]} {[%emt 00:00:02]} e6 {[%clk 00:15:08]} {[%emt
00:00:03]} 2. d4 {[%clk 00:15:11]} {[%emt 00:00:02]} d5 {[%clk 00:15:11]}
{[%emt 00:00:01]} 3. Nd2 {[%clk 00:15:14]} {[%emt 00:00:02]} c5 {[%clk
00:15:14]} {[%emt 00:00:03]} 4. exd5 {[%clk 00:15:17]} {[%emt 00:00:01]} Qxd5
{[%clk 00:15:07]} {[%emt 00:00:12]} 5. Ngf3 {[%clk 00:15:19]} {[%emt 00:00:03]}
cxd4 {[%clk 00:15:03]} {[%emt 00:00:09]} 6. Bc4 {[%clk 00:15:21]} {[%emt
00:00:03]} Qd6 {[%clk 00:15:06]} {[%emt 00:00:03]} 7. O-O {[%clk 00:15:20]}
{[%emt 00:00:05]} Nf6 {[%clk 00:14:50]} {[%emt 00:00:21]} 8. Nb3 {[%clk
00:15:19]} {[%emt 00:00:05]} Nc6 {[%clk 00:14:53]} {[%emt 00:00:02]} 9. Nbxd4
{[%clk 00:15:20]} {[%emt 00:00:06]} Nxd4 {[%clk 00:14:56]} {[%emt 00:00:02]} 10.
Nxd4 {[%clk 00:15:22]} {[%emt 00:00:03]} Be7 {[%clk 00:14:12]} {[%emt
00:00:48]} 11. c3 {[%clk 00:14:44]} {[%emt 00:00:44]} O-O {[%clk 00:14:02]}
{[%emt 00:00:14]} 12. Qf3 {[%clk 00:14:33]} {[%emt 00:00:16]} Qc7 {[%clk
00:13:42]} {[%emt 00:00:26]} 13. Bb3 {[%clk 00:14:16]} {[%emt 00:00:22]} a5
{[%clk 00:11:58]} {[%emt 00:01:48]} 14. a4 {[%clk 00:13:41]} {[%emt 00:00:40]}
Bd7 {[%clk 00:11:53]} {[%emt 00:00:11]} 15. Bg5 {[%clk 00:12:08]} {[%emt
00:01:37]} Bc6 {[%clk 00:09:59]} {[%emt 00:01:59]} 16. Nxc6 {[%clk 00:11:56]}
{[%emt 00:00:18]} Qxc6 {[%clk 00:09:57]} {[%emt 00:00:07]} 17. Qh3 {[%clk
00:11:35]} {[%emt 00:00:23]} Qb6 {[%clk 00:09:44]} {[%emt 00:00:20]} 18. Bc2
{[%clk 00:11:24]} {[%emt 00:00:16]} g6 {[%clk 00:07:51]} {[%emt 00:01:57]} 19.
Rab1 {[%clk 00:11:11]} {[%emt 00:00:19]} Nd5 {[%clk 00:07:21]} {[%emt
00:00:35]} 20. Bxe7 {[%clk 00:10:37]} {[%emt 00:00:39]} Nxe7 {[%clk 00:07:24]}
{[%emt 00:00:02]} 21. b4 {[%clk 00:09:59]} {[%emt 00:00:44]} Nd5 {[%clk
00:07:12]} {[%emt 00:00:16]} 22. Be4 {[%clk 00:09:38]} {[%emt 00:00:26]} axb4
{[%clk 00:06:34]} {[%emt 00:00:44]} 23. Bxd5 {[%clk 00:09:39]} {[%emt
00:00:04]} exd5 {[%clk 00:06:31]} {[%emt 00:00:07]} 24. Rxb4 {[%clk 00:09:42]}
{[%emt 00:00:03]} Qc6 {[%clk 00:05:25]} {[%emt 00:01:11]} 25. Qd3 {[%emt
00:00:49]} Rfc8 {[%clk 00:05:05]} 26. Qd4 {[%clk 00:05:56]} {[%emt 00:03:30]}
Qxc3 {[%clk 00:04:58]} {[%emt 00:00:13]} 27. Qxc3 {[%clk 00:05:56]} {[%emt
00:00:06]} Rxc3 {[%clk 00:05:01]} {[%emt 00:00:02]} 28. Rxb7 {[%clk 00:05:57]}
{[%emt 00:00:04]} Rxa4 {[%clk 00:05:03]} {[%emt 00:00:04]} 29. Rd7 {[%clk
00:05:57]} {[%emt 00:00:03]} d4 {[%clk 00:04:54]} {[%emt 00:00:14]} 30. g3
{[%clk 00:05:56]} {[%emt 00:00:05]} d3 {[%clk 00:04:44]} {[%emt 00:00:17]} 31.
Rd1 {[%clk 00:05:51]} {[%emt 00:00:08]} Ra2 {[%clk 00:04:38]} {[%emt 00:00:13]}
32. R7xd3 {[%clk 00:05:46]} {[%emt 00:00:09]} Rxd3 {[%clk 00:04:14]} {[%emt
00:00:31]} 33. Rxd3 {[%clk 00:05:49]} {[%emt 00:00:01]} Kg7 {[%clk 00:04:15]}
{[%emt 00:00:03]} 34. Kg2 {[%clk 00:05:51]} {[%emt 00:00:03]} h5 {[%clk
00:04:18]} {[%emt 00:00:03]} 35. h4 {[%clk 00:05:51]} {[%emt 00:00:04]} Ra5
{[%clk 00:04:04]} {[%emt 00:00:19]} 36. Kf3 {[%clk 00:05:53]} {[%emt 00:00:04]}
Rf5+ {[%clk 00:03:39]} {[%emt 00:00:30]} 37. Ke2 {[%clk 00:05:54]} {[%emt
00:00:04]} Ra5 {[%clk 00:03:35]} {[%emt 00:00:09]} 38. Rd7 {[%clk 00:05:53]}
{[%emt 00:00:05]} Ra2+ {[%clk 00:03:35]} {[%emt 00:00:05]} 39. Kf3 {[%clk
00:05:55]} {[%emt 00:00:03]} Ra4 {[%clk 00:03:38]} {[%emt 00:00:02]} 40. Kg2
{[%clk 00:05:55]} {[%emt 00:00:05]} Ra2 {[%clk 00:03:39]} {[%emt 00:00:04]} 41.
Rb7 {[%clk 00:05:56]} {[%emt 00:00:04]} 1/2-1/2

[Event "The Kvibergspelen 2024"]
[Site "Kviberg Park Hotel & Conference, Krutvagen 2, Gothenburg, Sweden"]
[Date "2024.09.06"]
[Round "1.7"]
[White "Thomasson, Staffan"]
[Black "Grahn, Vidar"]
[Result "0-1"]
[TimeControl "15 minutes + 5 seconds per move from move one (Round 1 - 4) / 90 minutes + 30 seconds per move from move one (Round 5 - 8)"]
[BlackTitle "FM"]
[WhiteFideId "1706284"]
[BlackFideId "1744780"]
[WhiteElo "1877"]
[BlackElo "2219"]

1. c4 {[%clk 00:15:09]} {[%emt 00:00:02]} e6 {[%clk 00:15:03]} {[%emt
00:00:07]} 2. g3 {[%clk 00:15:12]} {[%emt 00:00:02]} d5 {[%clk 00:15:06]}
{[%emt 00:00:03]} 3. Bg2 {[%clk 00:15:13]} {[%emt 00:00:03]} d4 {[%clk
00:15:08]} {[%emt 00:00:02]} 4. Nf3 {[%clk 00:15:13]} {[%emt 00:00:05]} Nc6
{[%clk 00:15:12]} {[%emt 00:00:02]} 5. a3 {[%clk 00:15:02]} {[%emt 00:00:16]}
a5 {[%clk 00:15:09]} {[%emt 00:00:07]} 6. d3 {[%clk 00:15:00]} {[%emt
00:00:08]} Nge7 {[%clk 00:14:50]} {[%emt 00:00:23]} 7. O-O {[%clk 00:14:53]}
{[%emt 00:00:12]} Nf5 {[%clk 00:14:53]} {[%emt 00:00:02]} 8. Nbd2 {[%clk
00:14:23]} {[%emt 00:00:35]} Be7 {[%clk 00:14:50]} {[%emt 00:00:08]} 9. Ne4
{[%clk 00:14:01]} {[%emt 00:00:27]} O-O {[%clk 00:14:35]} {[%emt 00:00:20]} 10.
Bf4 {[%clk 00:13:58]} {[%emt 00:00:08]} f6 {[%clk 00:14:01]} {[%emt 00:00:40]}
11. Bd2 {[%clk 00:12:42]} {[%emt 00:01:21]} e5 {[%clk 00:13:46]} {[%emt
00:00:20]} 12. Rb1 {[%clk 00:12:46]} {[%emt 00:00:01]} a4 {[%clk 00:13:16]}
{[%emt 00:00:35]} 13. c5 {[%clk 00:12:01]} {[%emt 00:00:50]} Be6 {[%clk
00:13:05]} {[%emt 00:00:15]} 14. b4 {[%clk 00:09:58]} {[%emt 00:02:08]} axb3
{[%clk 00:12:39]} {[%emt 00:00:31]} 15. Qc1 {[%clk 00:09:56]} {[%emt 00:00:08]}
g6 {[%clk 00:12:02]} {[%emt 00:00:41]} 16. Bb4 {[%clk 00:07:55]} {[%emt
00:02:07]} Nxb4 {[%clk 00:11:14]} {[%emt 00:00:52]} 17. axb4 {[%clk 00:08:00]}
{[%emt 00:00:01]} Qd7 {[%clk 00:10:52]} {[%emt 00:00:25]} 18. Nfd2 {[%clk
00:08:00]} {[%emt 00:00:07]} Qa4 {[%clk 00:10:25]} {[%emt 00:00:31]} 19. Nc4
{[%clk 00:03:29]} {[%emt 00:04:38]} Qxb4 {[%clk 00:09:57]} {[%emt 00:00:31]} 20.
Ned2 {[%emt 00:00:14]} Bxc4 {[%clk 00:08:19]} {[%emt 00:01:40]} 21. dxc4 {[%clk
00:02:16]} {[%emt 00:01:12]} Ra3 {[%clk 00:06:49]} {[%emt 00:01:35]} 22. Bxb7
{[%clk 00:02:07]} {[%emt 00:00:15]} Rb8 {[%clk 00:06:24]} {[%emt 00:00:29]} 23.
Bd5+ {[%clk 00:02:11]} {[%emt 00:00:02]} Kg7 {[%clk 00:06:06]} {[%emt
00:00:23]} 24. g4 {[%clk 00:01:44]} {[%emt 00:00:32]} Nh6 {[%clk 00:05:53]}
{[%emt 00:00:18]} 25. h3 {[%clk 00:01:42]} {[%emt 00:00:06]} Qc3 {[%clk
00:05:53]} {[%emt 00:00:06]} 26. Qxa3 {[%clk 00:01:38]} {[%emt 00:00:08]} Qxd2
{[%clk 00:05:18]} {[%emt 00:00:40]} 27. Rxb3 {[%clk 00:01:28]} {[%emt
00:00:16]} Rxb3 {[%clk 00:05:12]} {[%emt 00:00:11]} 28. Qxb3 {[%clk 00:01:31]}
{[%emt 00:00:01]} f5 {[%clk 00:04:39]} {[%emt 00:00:38]} 29. gxf5 {[%clk
00:01:10]} {[%emt 00:00:26]} Nxf5 {[%clk 00:04:37]} {[%emt 00:00:07]} 30. Qb8
{[%clk 00:01:08]} {[%emt 00:00:07]} Qg5+ {[%clk 00:04:36]} {[%emt 00:00:05]} 31.
Kh2 {[%clk 00:01:02]} {[%emt 00:00:13]} Qf4+ {[%clk 00:04:38]} {[%emt
00:00:02]} 32. Kh1 {[%clk 00:01:04]} {[%emt 00:00:03]} Ng3+ {[%clk 00:04:15]}
{[%emt 00:00:28]} 33. Kg2 {[%clk 00:00:41]} {[%emt 00:00:30]} Nxf1 {[%clk
00:04:02]} {[%emt 00:00:17]} 34. Kxf1 {[%clk 00:00:44]} Bh4 {[%clk 00:03:27]}
{[%emt 00:00:38]} 35. Qxc7+ {[%clk 00:00:29]} {[%emt 00:00:23]} Kh6 {[%clk
00:03:26]} {[%emt 00:00:04]} 36. Qf7 {[%clk 00:00:20]} {[%emt 00:00:15]} Bf6
{[%clk 00:01:58]} {[%emt 00:01:34]} 37. c6 {[%clk 00:00:14]} {[%emt 00:00:11]}
e4 {[%clk 00:01:36]} {[%emt 00:00:27]} 38. c7 {[%clk 00:00:17]} {[%emt
00:00:02]} e3 {[%clk 00:01:31]} {[%emt 00:00:09]} 39. Qf8+ {[%clk 00:00:12]}
{[%emt 00:00:10]} Kg5 {[%clk 00:01:26]} {[%emt 00:00:08]} 40. Bf3 {[%clk
00:00:14]} {[%emt 00:00:07]} Qxc7 {[%clk 00:00:35]} {[%emt 00:00:55]} 41. h4+
{[%clk 00:00:17]} {[%emt 00:00:03]} Kf5 {[%clk 00:00:38]} {[%emt 00:00:01]} 42.
c5 {[%clk 00:00:13]} {[%emt 00:00:09]} g5 {[%clk 00:00:16]} {[%emt 00:00:28]}
43. h5 {[%clk 00:00:12]} {[%emt 00:00:06]} exf2 {[%clk 00:00:11]} {[%emt
00:00:09]} 44. Kxf2 {[%clk 00:00:15]} {[%emt 00:00:03]} Qh2+ {[%clk 00:00:10]}
{[%emt 00:00:06]} 45. Ke1 {[%clk 00:00:17]} {[%emt 00:00:03]} Qg1+ {[%clk
00:00:13]} {[%emt 00:00:02]} 46. Kd2 {[%clk 00:00:20]} {[%emt 00:00:02]} Qe3+
{[%clk 00:00:17]} 47. Ke1 {[%clk 00:00:24]} Qc3+ {[%clk 00:00:17]} {[%emt
00:00:04]} 48. Kf2 {[%clk 00:00:28]} {[%emt 00:00:03]} d3 {[%clk 00:00:20]} 49.
Qc8+ {[%clk 00:00:30]} {[%emt 00:00:03]} Ke5 {[%clk 00:00:17]} {[%emt
00:00:07]} 50. Qc7+ {[%clk 00:00:32]} {[%emt 00:00:03]} Kd4 {[%clk 00:00:18]}
{[%emt 00:00:04]} 51. e3+ {[%clk 00:00:33]} {[%emt 00:00:06]} Kc4 {[%clk
00:00:20]} 52. c6 {[%clk 00:00:23]} {[%emt 00:00:15]} d2 {[%clk 00:00:23]}
{[%emt 00:00:02]} 53. Qf7+ {[%clk 00:00:22]} {[%emt 00:00:07]} Kb4 {[%clk
00:00:26]} {[%emt 00:00:02]} 54. Bd1 {[%clk 00:00:20]} {[%emt 00:00:07]} Be5
{[%clk 00:00:22]} {[%emt 00:00:09]} 55. Qxh7 {[%clk 00:00:12]} {[%emt
00:00:12]} Qxc6 {[%clk 00:00:25]} {[%emt 00:00:02]} 56. Qb1+ {[%clk 00:00:15]}
{[%emt 00:00:03]} Ka5 {[%clk 00:00:24]} {[%emt 00:00:06]} 57. Qa2+ {[%clk
00:00:18]} {[%emt 00:00:02]} Kb6 {[%clk 00:00:25]} {[%emt 00:00:03]} 58. Qxd2
{[%clk 00:00:21]} {[%emt 00:00:02]} Qf6+ {[%clk 00:00:29]} 59. Ke2 {[%clk
00:00:25]} {[%emt 00:00:02]} g4 {[%clk 00:00:30]} {[%emt 00:00:03]} 60. Qb4+
{[%clk 00:00:26]} {[%emt 00:00:05]} Kc7 {[%clk 00:00:34]} {[%emt 00:00:01]} 61.
Qxg4 {[%clk 00:00:28]} {[%emt 00:00:03]} Qa6+ {[%clk 00:00:33]} {[%emt
00:00:05]} 62. Kf2 {[%clk 00:00:30]} {[%emt 00:00:03]} Qa2+ {[%clk 00:00:36]}
{[%emt 00:00:02]} 63. Be2 {[%clk 00:00:34]} {[%emt 00:00:02]} Qf7+ {[%clk
00:00:38]} {[%emt 00:00:02]} 64. Qf3 {[%clk 00:00:34]} {[%emt 00:00:06]} Qe7
{[%clk 00:00:42]} 65. Qf5 {[%clk 00:00:33]} {[%emt 00:00:07]} Qh4+ {[%clk
00:00:45]} {[%emt 00:00:01]} 66. Kf1 {[%clk 00:00:32]} {[%emt 00:00:06]} Bg3
{[%clk 00:00:46]} {[%emt 00:00:04]} 67. Qf7+ {[%clk 00:00:30]} {[%emt
00:00:07]} Kd6 {[%clk 00:00:48]} {[%emt 00:00:02]} 68. Qg6+ {[%clk 00:00:33]}
{[%emt 00:00:03]} Ke7 {[%clk 00:00:50]} {[%emt 00:00:04]} 69. h6 {[%clk
00:00:33]} {[%emt 00:00:05]} Qh1# {[%clk 00:00:53]} {[%emt 00:00:02]} 0-1

[Event "The Kvibergspelen 2024"]
[Site "Kviberg Park Hotel & Conference, Krutvagen 2, Gothenburg, Sweden"]
[Date "2024.09.06"]
[Round "1.8"]
[White "Nord, Alexander"]
[Black "Frisk, Anders"]
[Result "1-0"]
[TimeControl "15 minutes + 5 seconds per move from move one (Round 1 - 4) / 90 minutes + 30 seconds per move from move one (Round 5 - 8)"]
[WhiteTitle "CM"]
[WhiteFideId "1738135"]
[BlackFideId "1718797"]
[WhiteElo "2209"]
[BlackElo "1871"]

1. d4 {[%clk 00:15:08]} {[%emt 00:00:02]} f5 {[%clk 00:15:04]} {[%emt
00:00:07]} 2. Nf3 {[%clk 00:15:08]} {[%emt 00:00:04]} Nf6 {[%clk 00:15:02]}
{[%emt 00:00:07]} 3. g3 {[%clk 00:15:11]} {[%emt 00:00:02]} g6 {[%clk
00:15:04]} {[%emt 00:00:05]} 4. Bg2 {[%clk 00:15:11]} {[%emt 00:00:04]} Bg7
{[%clk 00:15:07]} 5. O-O {[%clk 00:15:11]} {[%emt 00:00:05]} d6 {[%clk
00:15:04]} {[%emt 00:00:08]} 6. c4 {[%clk 00:14:46]} {[%emt 00:00:30]} O-O
{[%clk 00:15:07]} {[%emt 00:00:03]} 7. b4 {[%clk 00:14:03]} {[%emt 00:00:48]}
c6 {[%clk 00:14:27]} {[%emt 00:00:45]} 8. Bb2 {[%clk 00:13:59]} {[%emt
00:00:08]} Na6 {[%clk 00:13:13]} {[%emt 00:01:19]} 9. Qb3 {[%clk 00:12:08]}
{[%emt 00:01:56]} e6 {[%clk 00:11:11]} {[%emt 00:02:07]} 10. a4 {[%clk
00:11:37]} {[%emt 00:00:36]} Nc7 {[%clk 00:10:03]} {[%emt 00:01:13]} 11. Nbd2
{[%clk 00:11:15]} {[%emt 00:00:27]} Ne4 {[%clk 00:08:29]} {[%emt 00:01:39]} 12.
Rad1 {[%clk 00:10:55]} {[%emt 00:00:25]} d5 {[%clk 00:07:51]} {[%emt 00:00:43]}
13. Ne5 {[%clk 00:09:27]} {[%emt 00:01:33]} a6 {[%clk 00:06:45]} {[%emt
00:01:11]} 14. cxd5 {[%clk 00:07:59]} {[%emt 00:01:33]} exd5 {[%clk 00:06:17]}
{[%emt 00:00:33]} 15. Nxe4 {[%clk 00:07:47]} {[%emt 00:00:17]} fxe4 {[%clk
00:05:59]} {[%emt 00:00:22]} 16. Bxe4 {[%clk 00:07:46]} {[%emt 00:00:07]} Bh3
{[%clk 00:04:42]} {[%emt 00:01:22]} 17. Bg2 {[%clk 00:07:43]} {[%emt 00:00:08]}
Bxg2 {[%clk 00:04:12]} {[%emt 00:00:35]} 18. Kxg2 {[%clk 00:07:47]} {[%emt
00:00:01]} h5 {[%clk 00:03:06]} {[%emt 00:01:11]} 19. Nxg6 {[%clk 00:06:24]}
{[%emt 00:01:28]} Rf6 {[%clk 00:02:57]} {[%emt 00:00:13]} 20. Ne5 {[%clk
00:06:20]} {[%emt 00:00:10]} Rf5 {[%clk 00:02:04]} {[%emt 00:00:58]} 21. Nf3
{[%clk 00:04:45]} {[%emt 00:01:40]} Ne6 {[%clk 00:01:13]} {[%emt 00:00:56]} 22.
e4 {[%clk 00:04:04]} {[%emt 00:00:46]} Rxf3 {[%clk 00:00:24]} {[%emt 00:00:54]}
23. Qxf3 {[%clk 00:04:03]} {[%emt 00:00:06]} Ng5 {[%clk 00:00:21]} {[%emt
00:00:09]} 24. Qxh5 {[%clk 00:03:38]} {[%emt 00:00:30]} Nxe4 {[%clk 00:00:16]}
{[%emt 00:00:10]} 25. f3 {[%clk 00:03:15]} {[%emt 00:00:28]} Nf6 {[%clk
00:00:15]} {[%emt 00:00:06]} 26. Qg6 {[%clk 00:03:18]} Qd6 {[%clk 00:00:07]}
{[%emt 00:00:13]} 27. Bc3 {[%clk 00:02:58]} {[%emt 00:00:25]} Rf8 {[%clk
00:00:11]} {[%emt 00:00:02]} 28. Rde1 {[%clk 00:02:42]} {[%emt 00:00:21]} b6
{[%clk 00:00:13]} {[%emt 00:00:03]} 29. Re5 {[%clk 00:02:22]} {[%emt 00:00:23]}
Qc7 {[%clk 00:00:11]} {[%emt 00:00:09]} 30. Rfe1 {[%clk 00:01:53]} {[%emt
00:00:34]} 1-0

[Event "The Kvibergspelen 2024"]
[Site "Kviberg Park Hotel & Conference, Krutvagen 2, Gothenburg, Sweden"]
[Date "2024.09.06"]
[Round "1.9"]
[White "Green, David"]
[Black "Andersson, Johan"]
[Result "0-1"]
[TimeControl "15 minutes + 5 seconds per move from move one (Round 1 - 4) / 90 minutes + 30 seconds per move from move one (Round 5 - 8)"]
[WhiteFideId "1769332"]
[BlackFideId "1703935"]
[WhiteElo "1869"]
[BlackElo "2158"]

1. e4 {[%clk 00:15:05]} {[%emt 00:00:04]} d6 {[%clk 00:15:03]} {[%emt
00:00:08]} 2. d4 {[%clk 00:15:00]} {[%emt 00:00:10]} Nf6 {[%clk 00:15:05]}
{[%emt 00:00:03]} 3. Nc3 {[%clk 00:14:54]} {[%emt 00:00:12]} c6 {[%clk
00:15:05]} {[%emt 00:00:04]} 4. Nf3 {[%clk 00:14:14]} {[%emt 00:00:46]} Bg4
{[%clk 00:15:05]} {[%emt 00:00:04]} 5. Be2 {[%clk 00:13:56]} {[%emt 00:00:24]}
e6 {[%clk 00:15:05]} {[%emt 00:00:05]} 6. O-O {[%clk 00:13:50]} {[%emt
00:00:11]} d5 {[%clk 00:15:02]} {[%emt 00:00:07]} 7. Bg5 {[%clk 00:12:36]}
{[%emt 00:01:19]} Be7 {[%clk 00:14:41]} {[%emt 00:00:27]} 8. e5 {[%clk
00:11:29]} {[%emt 00:01:11]} Nfd7 {[%clk 00:14:43]} {[%emt 00:00:03]} 9. Bxe7
{[%clk 00:11:27]} {[%emt 00:00:08]} Qxe7 {[%clk 00:14:45]} {[%emt 00:00:02]} 10.
Qd2 {[%clk 00:10:28]} {[%emt 00:01:04]} O-O {[%clk 00:14:07]} {[%emt 00:00:44]}
11. Rad1 {[%clk 00:09:02]} {[%emt 00:01:32]} c5 {[%clk 00:13:36]} {[%emt
00:00:35]} 12. Nb5 {[%clk 00:08:06]} {[%emt 00:01:01]} Nc6 {[%clk 00:13:26]}
{[%emt 00:00:14]} 13. c3 {[%clk 00:07:53]} {[%emt 00:00:19]} a6 {[%clk
00:12:52]} {[%emt 00:00:39]} 14. Nd6 {[%clk 00:07:18]} {[%emt 00:00:40]} b5
{[%clk 00:10:40]} {[%emt 00:02:16]} 15. Qf4 {[%clk 00:05:53]} {[%emt 00:01:30]}
Bxf3 {[%clk 00:08:11]} {[%emt 00:02:34]} 16. Bxf3 {[%clk 00:04:12]} {[%emt
00:01:47]} f6 {[%clk 00:08:04]} {[%emt 00:00:12]} 17. exf6 {[%clk 00:02:21]}
{[%emt 00:01:56]} Rxf6 {[%clk 00:07:49]} {[%emt 00:00:19]} 18. Qg3 {[%clk
00:01:46]} {[%emt 00:00:40]} Rg6 {[%clk 00:07:20]} {[%emt 00:00:34]} 19. Bg4
{[%clk 00:01:40]} {[%emt 00:00:12]} Rxg4 {[%clk 00:06:50]} {[%emt 00:00:34]} 20.
Qxg4 {[%clk 00:01:27]} {[%emt 00:00:18]} Qxd6 {[%clk 00:06:53]} {[%emt
00:00:03]} 21. Rfe1 {[%clk 00:01:26]} {[%emt 00:00:07]} Re8 {[%clk 00:05:38]}
{[%emt 00:01:18]} 22. Re3 {[%clk 00:01:24]} {[%emt 00:00:08]} Nf6 {[%clk
00:05:14]} {[%emt 00:00:29]} 23. Qg5 {[%clk 00:01:03]} {[%emt 00:00:25]} Ne4
{[%clk 00:03:47]} {[%emt 00:01:32]} 24. Qh5 {[%clk 00:01:06]} {[%emt 00:00:02]}
Rf8 {[%clk 00:02:53]} {[%emt 00:00:59]} 25. f3 {[%clk 00:00:13]} {[%emt
00:00:59]} Nf6 {[%clk 00:02:30]} {[%emt 00:00:28]} 26. Qh3 {[%clk 00:00:16]}
{[%emt 00:00:01]} Re8 {[%clk 00:01:41]} {[%emt 00:00:55]} 27. Rde1 {[%clk
00:00:07]} {[%emt 00:00:13]} Kf7 {[%clk 00:00:47]} {[%emt 00:01:00]} 28. dxc5
{[%clk 00:00:07]} {[%emt 00:00:06]} Qxc5 {[%clk 00:00:49]} {[%emt 00:00:04]} 29.
Kh1 {[%clk 00:00:09]} {[%emt 00:00:01]} Qd6 {[%clk 00:00:44]} {[%emt 00:00:08]}
30. g4 {[%clk 00:00:13]} {[%emt 00:00:01]} h6 {[%clk 00:00:44]} {[%emt
00:00:05]} 31. Qh4 {[%clk 00:00:06]} {[%emt 00:00:13]} Qf4 {[%clk 00:00:43]}
{[%emt 00:00:06]} 32. Qf2 {[%clk 00:00:00]} Nxg4 {[%clk 00:00:43]} {[%emt
00:00:15]} 0-1

[Event "The Kvibergspelen 2024"]
[Site "Kviberg Park Hotel & Conference, Krutvagen 2, Gothenburg, Sweden"]
[Date "2024.09.06"]
[Round "1.10"]
[White "Muntean, Victor"]
[Black "Lappas Lonnermark, Johannes"]
[Result "1-0"]
[TimeControl "15 minutes + 5 seconds per move from move one (Round 1 - 4) / 90 minutes + 30 seconds per move from move one (Round 5 - 8)"]
[WhiteFideId "1054414"]
[BlackFideId "1773437"]
[WhiteElo "2158"]
[BlackElo "1862"]

1. e4 {[%emt 00:00:02]} e6 {[%clk 00:15:08]} {[%emt 00:00:01]} 2. d4 {[%clk
00:15:10]} {[%emt 00:00:04]} d5 {[%clk 00:15:12]} {[%emt 00:00:02]} 3. e5
{[%clk 00:15:14]} c5 {[%clk 00:15:15]} {[%emt 00:00:02]} 4. c3 {[%clk
00:15:17]} {[%emt 00:00:02]} Nc6 {[%clk 00:15:18]} {[%emt 00:00:02]} 5. Nf3
{[%clk 00:15:21]} Qb6 {[%clk 00:15:21]} {[%emt 00:00:02]} 6. Bd3 {[%clk
00:15:25]} {[%emt 00:00:02]} cxd4 {[%clk 00:15:22]} {[%emt 00:00:03]} 7. O-O
{[%clk 00:15:28]} {[%emt 00:00:01]} Bd7 {[%clk 00:15:25]} {[%emt 00:00:03]} 8.
Re1 {[%clk 00:15:31]} {[%emt 00:00:02]} Nge7 {[%clk 00:15:09]} {[%emt
00:00:21]} 9. h4 {[%clk 00:15:35]} {[%emt 00:00:01]} Rc8 {[%clk 00:14:44]}
{[%emt 00:00:29]} 10. Nbd2 {[%clk 00:15:15]} {[%emt 00:00:25]} dxc3 {[%clk
00:14:42]} {[%emt 00:00:09]} 11. bxc3 {[%clk 00:15:18]} Qc7 {[%clk 00:14:41]}
{[%emt 00:00:05]} 12. Nb3 {[%clk 00:14:27]} {[%emt 00:00:57]} Ng6 {[%clk
00:13:59]} {[%emt 00:00:47]} 13. Qe2 {[%clk 00:14:27]} {[%emt 00:00:05]} Be7
{[%clk 00:12:44]} {[%emt 00:01:20]} 14. h5 {[%clk 00:13:52]} {[%emt 00:00:40]}
Nh4 {[%clk 00:12:38]} {[%emt 00:00:11]} 15. Nxh4 {[%clk 00:13:47]} {[%emt
00:00:09]} Bxh4 {[%clk 00:12:39]} {[%emt 00:00:05]} 16. Qg4 {[%clk 00:13:32]}
{[%emt 00:00:19]} Nxe5 {[%clk 00:11:12]} {[%emt 00:01:32]} 17. Rxe5 {[%clk
00:13:33]} {[%emt 00:00:05]} Bxf2+ {[%clk 00:11:11]} {[%emt 00:00:05]} 18. Kxf2
{[%clk 00:13:37]} {[%emt 00:00:02]} Qxe5 {[%clk 00:11:12]} {[%emt 00:00:04]} 19.
Be3 {[%clk 00:13:08]} {[%emt 00:00:33]} O-O {[%clk 00:09:16]} {[%emt 00:02:01]}
20. Bd4 {[%clk 00:13:04]} {[%emt 00:00:10]} 1-0